[Event "The Schackveckan 2023: IM-turnering"]
[Site "Goteborgs schackcentrum, Vegagatan 20, Gothenburg, Sweden"]
[Date "2023.08.06"]
[Round "3.4"]
[White "Karlsson, Stefan"]
[Black "Brattgjerd, Isak Vinh"]
[Result "0-1"]
[TimeControl "90 minutes for 40 moves + 30 minutes for the rest of the game + 30 seconds per move from move one."]
[WhiteFideId "1771183"]
[BlackFideId "1549880"]
[WhiteElo "1925"]
[BlackElo "2214"]

1. e4 {[%clk 01:20:16]} {[%emt 00:10:36]} c6 {[%clk 01:30:58]} {[%emt
00:00:10]} 2. d4 {[%clk 01:20:40]} {[%emt 00:00:06]} d5 {[%clk 01:31:23]}
{[%emt 00:00:05]} 3. e5 {[%clk 01:21:03]} {[%emt 00:00:06]} c5 {[%clk
01:31:50]} {[%emt 00:00:04]} 4. dxc5 {[%clk 01:20:55]} {[%emt 00:00:37]} e6
{[%clk 01:32:16]} {[%emt 00:00:04]} 5. a3 {[%clk 01:21:18]} {[%emt 00:00:08]}
Bxc5 {[%clk 01:32:41]} {[%emt 00:00:05]} 6. Qg4 {[%clk 01:21:36]} {[%emt
00:00:12]} Ne7 {[%clk 01:33:02]} {[%emt 00:00:10]} 7. Nf3 {[%clk 01:21:59]}
{[%emt 00:00:06]} Qb6 {[%clk 01:20:08]} {[%emt 00:13:24]} 8. Bd3 {[%clk
01:22:08]} {[%emt 00:00:21]} Bxf2+ {[%clk 01:15:59]} {[%emt 00:04:40]} 9. Ke2
{[%clk 01:22:31]} {[%emt 00:00:06]} Nbc6 {[%clk 01:02:56]} {[%emt 00:13:33]} 10.
Rf1 {[%clk 01:22:49]} {[%emt 00:00:11]} Nd4+ {[%clk 00:54:54]} {[%emt
00:08:33]} 11. Nxd4 {[%clk 01:12:48]} {[%emt 00:10:31]} Qxd4 {[%clk 00:53:17]}
{[%emt 00:02:08]} 12. Qf3 {[%clk 00:55:03]} {[%emt 00:18:13]} Bh4 {[%clk
00:52:48]} {[%emt 00:00:59]} 13. Qxf7+ {[%clk 00:54:33]} {[%emt 00:01:01]} Kd7
{[%clk 00:51:01]} {[%emt 00:02:17]} 14. Bf4 {[%clk 00:43:02]} {[%emt 00:12:00]}
g5 {[%clk 00:41:15]} {[%emt 00:10:16]} 15. c3 {[%clk 00:42:55]} {[%emt
00:00:37]} Qa4 {[%clk 00:40:48]} {[%emt 00:00:57]} 16. b3 {[%clk 00:37:43]}
{[%emt 00:05:43]} Qc6 {[%clk 00:38:39]} {[%emt 00:02:39]} 17. Bd2 {[%clk
00:26:41]} {[%emt 00:11:31]} b6 {[%clk 00:33:26]} {[%emt 00:05:45]} 18. a4
{[%clk 00:19:56]} {[%emt 00:07:14]} a6 {[%clk 00:33:07]} {[%emt 00:00:49]} 19.
g3 {[%clk 00:19:46]} {[%emt 00:00:40]} Bb7 {[%clk 00:32:04]} {[%emt 00:01:33]}
20. gxh4 {[%clk 00:16:53]} {[%emt 00:03:22]} Rhf8 {[%clk 00:31:37]} {[%emt
00:00:57]} 21. Qxf8 {[%clk 00:15:59]} {[%emt 00:01:24]} Rxf8 {[%clk 00:32:03]}
{[%emt 00:00:05]} 22. Rxf8 {[%clk 00:16:24]} {[%emt 00:00:05]} Qc7 {[%clk
00:28:50]} {[%emt 00:03:42]} 23. Kd1 {[%clk 00:13:39]} {[%emt 00:03:14]} Qxe5
{[%clk 00:28:46]} {[%emt 00:00:36]} 24. Rf7 {[%clk 00:12:34]} {[%emt 00:01:34]}
h6 {[%clk 00:28:20]} {[%emt 00:00:57]} 25. hxg5 {[%clk 00:12:41]} {[%emt
00:00:23]} hxg5 {[%clk 00:28:49]} {[%emt 00:00:01]} 26. Rh7 {[%clk 00:12:01]}
{[%emt 00:01:09]} Qf6 {[%clk 00:28:23]} {[%emt 00:00:57]} 27. Kc2 {[%clk
00:11:21]} {[%emt 00:01:10]} e5 {[%clk 00:28:47]} {[%emt 00:00:07]} 28. Na3
{[%clk 00:09:16]} {[%emt 00:02:34]} e4 {[%clk 00:28:35]} {[%emt 00:00:42]} 29.
Be2 {[%clk 00:09:01]} {[%emt 00:00:44]} Qf5 {[%clk 00:24:33]} {[%emt 00:04:33]}
30. Rh6 {[%clk 00:06:32]} {[%emt 00:02:59]} e3+ {[%clk 00:24:31]} {[%emt
00:00:32]} 31. Bd3 {[%clk 00:06:35]} {[%emt 00:00:26]} Qf2 {[%clk 00:24:40]}
{[%emt 00:00:21]} 32. Rd1 {[%clk 00:06:54]} {[%emt 00:00:11]} Nc6 {[%clk
00:22:24]} {[%emt 00:02:47]} 33. Kc1 {[%clk 00:06:03]} {[%emt 00:01:21]} Ne5
{[%clk 00:21:49]} {[%emt 00:01:05]} 34. Rh7+ {[%clk 00:05:19]} {[%emt
00:01:13]} Kc8 {[%clk 00:21:53]} {[%emt 00:00:27]} 35. Rh8+ {[%clk 00:04:38]}
{[%emt 00:01:14]} Kc7 {[%clk 00:22:22]} 36. Rh7+ {[%clk 00:03:48]} {[%emt
00:01:18]} Kb8 {[%clk 00:21:34]} {[%emt 00:01:19]} 37. Bb1 {[%clk 00:02:23]}
{[%emt 00:01:53]} exd2+ {[%clk 00:13:14]} {[%emt 00:08:50]} 38. Rxd2 {[%clk
00:02:52]} {[%emt 00:00:02]} Qe3 {[%clk 00:09:03]} {[%emt 00:04:40]} 39. Kd1
{[%clk 00:02:40]} {[%emt 00:00:42]} Qxc3 {[%clk 00:08:36]} {[%emt 00:00:57]} 40.
Bc2 {[%clk 00:02:06]} {[%emt 00:01:03]} d4 {[%clk 00:06:06]} {[%emt 00:03:01]}
41. Rh8+ {[%clk 00:23:20]} {[%emt 00:09:16]} Ka7 {[%clk 00:36:21]} {[%emt
00:00:15]} 42. Rd8 {[%clk 00:18:27]} {[%emt 00:05:22]} d3 {[%clk 00:33:10]}
{[%emt 00:03:43]} 43. R8xd3 {[%clk 00:14:51]} {[%emt 00:04:05]} Nxd3 {[%clk
00:32:19]} {[%emt 00:01:21]} 44. Rxd3 {[%clk 00:15:10]} {[%emt 00:00:11]} Qc5
{[%clk 00:32:02]} {[%emt 00:00:48]} 45. Nc4 {[%clk 00:14:14]} {[%emt 00:01:26]}
Qg1+ {[%clk 00:32:25]} {[%emt 00:00:06]} 46. Kd2 {[%clk 00:14:33]} {[%emt
00:00:11]} Qxh2+ {[%clk 00:32:32]} {[%emt 00:00:24]} 47. Kc3 {[%clk 00:14:55]}
{[%emt 00:00:06]} Qc7 {[%clk 00:32:04]} {[%emt 00:00:58]} 48. Kb2 {[%clk
00:12:04]} {[%emt 00:03:22]} g4 {[%clk 00:32:07]} {[%emt 00:00:27]} 49. Rd1
{[%clk 00:09:30]} {[%emt 00:03:05]} g3 {[%clk 00:32:04]} {[%emt 00:00:33]} 50.
Nd6 {[%clk 00:08:00]} {[%emt 00:01:58]} g2 {[%clk 00:32:13]} {[%emt 00:00:22]}
51. Nxb7 {[%clk 00:07:54]} {[%emt 00:00:36]} Qg7+ {[%clk 00:32:12]} {[%emt
00:00:31]} 52. Ka2 {[%clk 00:07:59]} {[%emt 00:00:25]} g1=Q {[%clk 00:32:17]}
{[%emt 00:00:25]} 53. Rxg1 {[%clk 00:08:18]} {[%emt 00:00:11]} Qxg1 {[%clk
00:32:42]} {[%emt 00:00:05]} 54. Nd6 {[%clk 00:08:31]} {[%emt 00:00:16]} Qh2
{[%clk 00:33:05]} {[%emt 00:00:08]} 0-1

[Event "The Schackveckan 2023: IM-turnering"]
[Site "Goteborgs schackcentrum, Vegagatan 20, Gothenburg, Sweden"]
[Date "2023.08.06"]
[Round "3.5"]
[White "Berggren Torell, Harald"]
[Black "Hector, Jonny"]
[Result "0-1"]
[TimeControl "90 minutes for 40 moves + 30 minutes for the rest of the game + 30 seconds per move from move one."]
[BlackTitle "GM"]
[WhiteFideId "1714031"]
[BlackFideId "1700090"]
[WhiteElo "2061"]
[BlackElo "2466"]

1. Nf3 {[%clk 01:30:57]} {[%emt 00:00:04]} d5 {[%clk 01:30:49]} {[%emt
00:00:10]} 2. g3 {[%clk 01:31:20]} {[%emt 00:00:08]} Nc6 {[%clk 01:31:04]}
{[%emt 00:00:13]} 3. d4 {[%clk 01:31:09]} {[%emt 00:00:43]} Bf5 {[%clk
01:31:21]} {[%emt 00:00:11]} 4. Bg2 {[%clk 01:31:08]} {[%emt 00:00:33]} Nb4
{[%clk 01:31:37]} {[%emt 00:00:13]} 5. Na3 {[%clk 01:30:57]} {[%emt 00:00:42]}
e6 {[%clk 01:31:47]} {[%emt 00:00:19]} 6. O-O {[%clk 01:28:43]} {[%emt
00:02:45]} h5 {[%clk 01:30:35]} {[%emt 00:01:41]} 7. Ne5 {[%clk 01:24:14]}
{[%emt 00:05:00]} f6 {[%clk 01:25:16]} {[%emt 00:05:47]} 8. Nd3 {[%clk
01:18:01]} {[%emt 00:06:45]} h4 {[%clk 01:22:29]} {[%emt 00:03:15]} 9. Nc5
{[%clk 01:10:52]} {[%emt 00:07:40]} hxg3 {[%clk 01:18:33]} {[%emt 00:04:26]} 10.
fxg3 {[%clk 01:02:48]} {[%emt 00:08:35]} Bxc5 {[%clk 01:16:02]} {[%emt
00:02:59]} 11. dxc5 {[%clk 01:03:12]} {[%emt 00:00:08]} Qe7 {[%clk 01:11:49]}
{[%emt 00:04:40]} 12. c3 {[%clk 01:00:55]} {[%emt 00:02:50]} Qxc5+ {[%clk
01:11:01]} {[%emt 00:01:16]} 13. e3 {[%clk 00:50:21]} {[%emt 00:11:06]} Nc6
{[%clk 01:10:55]} {[%emt 00:00:35]} 14. Qa4 {[%clk 00:38:49]} {[%emt 00:12:03]}
a6 {[%clk 01:01:19]} {[%emt 00:10:05]} 15. b4 {[%clk 00:36:44]} {[%emt
00:02:36]} Qxc3 {[%clk 00:58:33]} {[%emt 00:03:15]} 16. Nb5 {[%clk 00:35:37]}
{[%emt 00:01:38]} Qe5 {[%clk 00:54:40]} {[%emt 00:04:23]} 17. Nd4 {[%clk
00:34:26]} {[%emt 00:01:41]} Kf7 {[%clk 00:41:44]} {[%emt 00:13:24]} 18. b5
{[%clk 00:24:42]} {[%emt 00:10:16]} Nxd4 {[%clk 00:39:09]} {[%emt 00:03:04]} 19.
exd4 {[%clk 00:25:09]} {[%emt 00:00:04]} Qe2 {[%clk 00:35:49]} {[%emt
00:03:48]} 20. Ba3 {[%clk 00:19:43]} {[%emt 00:05:58]} Qe3+ {[%clk 00:30:57]}
{[%emt 00:05:21]} 0-1

[Event "The Schackveckan 2023: IM-turnering"]
[Site "Goteborgs schackcentrum, Vegagatan 20, Gothenburg, Sweden"]
[Date "2023.08.07"]
[Round "4.1"]
[White "Brattgjerd, Isak Vinh"]
[Black "Ustianovich, Nazar"]
[Result "0-1"]
[TimeControl "90 minutes for 40 moves + 30 minutes for the rest of the game + 30 seconds per move from move one."]
[BlackTitle "FM"]
[WhiteFideId "1549880"]
[BlackFideId "14109778"]
[WhiteElo "2214"]
[BlackElo "2314"]

1. e4 {[%clk 01:30:59]} c5 {[%clk 01:30:18]} {[%emt 00:00:43]} 2. Nf3 {[%clk
01:30:47]} {[%emt 00:00:31]} e6 {[%clk 01:29:33]} {[%emt 00:01:25]} 3. d4
{[%clk 01:31:15]} {[%emt 00:00:02]} cxd4 {[%clk 01:29:57]} {[%emt 00:00:06]} 4.
Nxd4 {[%clk 01:31:41]} {[%emt 00:00:05]} Nf6 {[%clk 01:29:43]} {[%emt
00:00:43]} 5. Nc3 {[%clk 01:32:10]} {[%emt 00:00:01]} d6 {[%clk 01:28:17]}
{[%emt 00:01:57]} 6. g4 {[%clk 01:32:07]} {[%emt 00:00:32]} h6 {[%clk
01:19:25]} {[%emt 00:09:23]} 7. g5 {[%clk 01:21:58]} {[%emt 00:10:38]} hxg5
{[%clk 01:19:37]} {[%emt 00:00:19]} 8. Bxg5 {[%clk 01:22:26]} {[%emt 00:00:01]}
a6 {[%clk 01:09:06]} {[%emt 00:11:02]} 9. Qd2 {[%clk 01:19:19]} {[%emt
00:03:36]} Nc6 {[%clk 00:54:33]} {[%emt 00:15:03]} 10. O-O-O {[%clk 01:17:49]}
{[%emt 00:02:00]} Qb6 {[%clk 00:53:34]} {[%emt 00:01:30]} 11. Nb3 {[%clk
01:13:05]} {[%emt 00:05:13]} Bd7 {[%clk 00:47:48]} {[%emt 00:06:17]} 12. Bg2
{[%clk 01:12:30]} {[%emt 00:01:05]} Ne5 {[%clk 00:44:56]} {[%emt 00:03:21]} 13.
Be3 {[%clk 00:45:58]} {[%emt 00:27:02]} Qc7 {[%clk 00:45:09]} {[%emt 00:00:17]}
14. Bd4 {[%clk 00:42:26]} {[%emt 00:04:02]} Nc4 {[%clk 00:33:34]} {[%emt
00:12:05]} 15. Qe2 {[%clk 00:42:23]} {[%emt 00:00:33]} e5 {[%clk 00:30:10]}
{[%emt 00:03:55]} 16. Be3 {[%clk 00:39:16]} {[%emt 00:03:37]} Rc8 {[%clk
00:29:53]} {[%emt 00:00:46]} 17. Rd3 {[%clk 00:27:01]} {[%emt 00:12:45]} b5
{[%clk 00:29:27]} {[%emt 00:00:57]} 18. Bg5 {[%clk 00:24:12]} {[%emt 00:03:18]}
b4 {[%clk 00:28:43]} {[%emt 00:01:14]} 19. Bxf6 {[%clk 00:20:36]} {[%emt
00:04:05]} bxc3 {[%clk 00:25:28]} {[%emt 00:04:36]} 20. Rxc3 {[%clk 00:12:58]}
{[%emt 00:08:08]} gxf6 {[%clk 00:25:37]} {[%emt 00:00:20]} 21. Bf1 {[%clk
00:12:40]} {[%emt 00:00:49]} Bh6+ {[%clk 00:24:56]} {[%emt 00:01:11]} 22. Kb1
{[%clk 00:13:05]} {[%emt 00:00:06]} Be6 {[%clk 00:23:09]} {[%emt 00:02:16]} 23.
Qd1 {[%clk 00:09:16]} {[%emt 00:04:19]} Qb6 {[%clk 00:21:56]} {[%emt 00:01:42]}
24. Bxc4 {[%clk 00:09:22]} {[%emt 00:00:25]} Rxc4 {[%clk 00:22:01]} {[%emt
00:00:24]} 25. Rxc4 {[%clk 00:09:00]} {[%emt 00:00:52]} Bxc4 {[%clk 00:22:26]}
{[%emt 00:00:06]} 26. Qh5 {[%clk 00:09:02]} {[%emt 00:00:27]} Qxf2 {[%clk
00:19:30]} {[%emt 00:03:27]} 27. Na5 {[%clk 00:08:28]} {[%emt 00:01:04]} Be2
{[%clk 00:09:35]} {[%emt 00:10:25]} 28. Qh3 {[%clk 00:08:24]} {[%emt 00:00:33]}
f5 {[%clk 00:09:29]} {[%emt 00:00:37]} 29. Qb3 {[%clk 00:07:00]} {[%emt
00:01:54]} O-O {[%clk 00:09:06]} {[%emt 00:00:53]} 30. Qh3 {[%clk 00:06:49]}
{[%emt 00:00:40]} Kh7 {[%clk 00:06:42]} {[%emt 00:02:54]} 31. exf5 {[%clk
00:05:51]} {[%emt 00:01:28]} Rg8 {[%clk 00:03:34]} {[%emt 00:03:38]} 32. a3
{[%clk 00:05:40]} {[%emt 00:00:42]} Qf3 {[%clk 00:03:11]} {[%emt 00:00:53]} 33.
Qxf3 {[%clk 00:05:49]} {[%emt 00:00:21]} Bxf3 {[%clk 00:03:35]} {[%emt
00:00:06]} 34. Rf1 {[%clk 00:06:16]} {[%emt 00:00:03]} e4 {[%clk 00:03:28]}
{[%emt 00:00:37]} 0-1

[Event "The Schackveckan 2023: IM-turnering"]
[Site "Goteborgs schackcentrum, Vegagatan 20, Gothenburg, Sweden"]
[Date "2023.08.07"]
[Round "4.2"]
[White "Kistrup, Nicolai"]
[Black "Karlsson, Stefan"]
[Result "1/2-1/2"]
[TimeControl "90 minutes for 40 moves + 30 minutes for the rest of the game + 30 seconds per move from move one."]
[WhiteTitle "FM"]
[WhiteFideId "1444816"]
[BlackFideId "1771183"]
[WhiteElo "2339"]
[BlackElo "1925"]

1. d4 {[%clk 01:30:57]} {[%emt 00:00:03]} Nf6 {[%clk 01:30:53]} {[%emt
00:00:08]} 2. c4 {[%clk 01:31:21]} {[%emt 00:00:06]} g6 {[%clk 01:31:15]}
{[%emt 00:00:07]} 3. Nc3 {[%clk 01:31:35]} {[%emt 00:00:17]} Bg7 {[%clk
01:31:38]} {[%emt 00:00:06]} 4. e4 {[%clk 01:29:15]} {[%emt 00:02:50]} d6
{[%clk 01:32:04]} {[%emt 00:00:06]} 5. Be2 {[%clk 01:29:20]} {[%emt 00:00:25]}
O-O {[%clk 01:32:24]} {[%emt 00:00:08]} 6. Be3 {[%clk 01:29:44]} {[%emt
00:00:06]} Nc6 {[%clk 01:32:11]} {[%emt 00:00:44]} 7. Nf3 {[%clk 01:28:21]}
{[%emt 00:01:53]} Ng4 {[%clk 01:29:56]} {[%emt 00:02:44]} 8. Bg5 {[%clk
01:28:01]} {[%emt 00:00:51]} h6 {[%clk 01:30:04]} {[%emt 00:00:22]} 9. Bh4
{[%clk 01:26:02]} {[%emt 00:02:29]} g5 {[%clk 01:29:33]} {[%emt 00:01:00]} 10.
Bg3 {[%clk 01:25:47]} {[%emt 00:00:45]} e5 {[%clk 01:29:41]} {[%emt 00:00:22]}
11. dxe5 {[%clk 01:23:45]} {[%emt 00:02:33]} Ngxe5 {[%clk 01:28:18]} {[%emt
00:01:53]} 12. h4 {[%clk 01:11:48]} {[%emt 00:12:26]} g4 {[%clk 01:25:50]}
{[%emt 00:02:58]} 13. Nxe5 {[%clk 01:04:22]} {[%emt 00:07:56]} Nxe5 {[%clk
01:25:58]} {[%emt 00:00:23]} 14. Bxe5 {[%clk 01:00:28]} {[%emt 00:04:24]} Bxe5
{[%clk 01:26:16]} {[%emt 00:00:12]} 15. Bxg4 {[%clk 01:00:47]} {[%emt
00:00:10]} Re8 {[%clk 01:17:45]} {[%emt 00:09:02]} 16. Bf3 {[%clk 00:52:30]}
{[%emt 00:08:46]} Bxc3+ {[%clk 01:16:43]} {[%emt 00:01:32]} 17. bxc3 {[%clk
00:52:54]} {[%emt 00:00:06]} Qf6 {[%clk 01:14:59]} {[%emt 00:02:14]} 18. Qd3
{[%clk 00:45:54]} {[%emt 00:07:30]} Bd7 {[%clk 01:00:24]} {[%emt 00:15:05]} 19.
c5 {[%clk 00:37:02]} {[%emt 00:09:22]} Bc6 {[%clk 00:38:31]} {[%emt 00:22:23]}
20. O-O {[%clk 00:20:58]} {[%emt 00:16:35]} Rad8 {[%clk 00:23:22]} {[%emt
00:15:37]} 21. g3 {[%clk 00:18:55]} {[%emt 00:02:34]} dxc5 {[%clk 00:22:14]}
{[%emt 00:01:39]} 22. Qe3 {[%clk 00:19:15]} {[%emt 00:00:10]} Re6 {[%clk
00:13:22]} {[%emt 00:09:21]} 23. Bg2 {[%clk 00:18:21]} {[%emt 00:01:24]} b6
{[%clk 00:08:48]} {[%emt 00:05:05]} 24. f4 {[%clk 00:15:24]} {[%emt 00:03:27]}
Bxe4 {[%clk 00:07:06]} {[%emt 00:02:12]} 25. f5 {[%clk 00:13:18]} {[%emt
00:02:36]} Bxg2 {[%clk 00:03:29]} {[%emt 00:04:07]} 26. fxe6 {[%clk 00:13:35]}
{[%emt 00:00:12]} Bxf1 {[%clk 00:03:46]} {[%emt 00:00:16]} 27. exf7+ {[%clk
00:13:46]} {[%emt 00:00:17]} Qxf7 {[%clk 00:03:59]} {[%emt 00:00:17]} 28. Rxf1
{[%clk 00:13:04]} {[%emt 00:01:12]} Qg7 {[%clk 00:02:38]} {[%emt 00:01:50]} 29.
Kh2 {[%clk 00:11:15]} {[%emt 00:02:19]} Kh8 {[%clk 00:02:30]} {[%emt 00:00:38]}
30. Rf5 {[%clk 00:05:53]} {[%emt 00:05:52]} Rf8 {[%clk 00:01:48]} {[%emt
00:01:12]} 31. Rxf8+ {[%clk 00:02:02]} {[%emt 00:04:21]} Qxf8 {[%clk 00:02:11]}
{[%emt 00:00:07]} 32. Qe5+ {[%clk 00:02:26]} {[%emt 00:00:05]} Qg7 {[%clk
00:02:32]} {[%emt 00:00:10]} 33. Qe8+ {[%clk 00:02:49]} {[%emt 00:00:08]} Qg8
{[%clk 00:02:37]} {[%emt 00:00:24]} 34. Qe5+ {[%clk 00:03:08]} {[%emt
00:00:11]} Qg7 {[%clk 00:03:03]} {[%emt 00:00:04]} 35. Qe8+ {[%clk 00:03:34]}
{[%emt 00:00:04]} Qg8 {[%clk 00:03:11]} {[%emt 00:00:22]} 36. Qe5+ {[%clk
00:03:27]} {[%emt 00:01:13]} Qg7 {[%clk 00:03:34]} {[%emt 00:00:06]} 37. Qe8+
{[%clk 00:03:37]} {[%emt 00:01:08]} 1/2-1/2